{"text_format":"3","workbook":"xlsx","n_sheets":3,"sheets":["Күнделікті кесте","Оқиға жоспарлағышы","Уақыт аралықтары"],"not_rendered":{"images":2,"defined_names":10},"read":"whole","date_system":"1900"}

{"sheet":"Күнделікті кесте","index":0,"n_rows":36,"n_cols":14,"rows_kept":36,"merged":[[2,1,6,2],[2,7,2,9],[2,11,2,12],[3,11,5,11],[3,12,5,12],[4,7,5,7],[6,11,8,11],[6,12,8,12],[7,1,9,2],[9,11,11,11],[9,12,11,12],[10,7,11,7],[12,1,12,2],[12,11,14,11],[12,12,14,12],[15,11,17,11],[15,12,17,12],[16,7,17,7],[18,11,20,11],[18,12,20,12],[21,1,21,2],[21,11,23,11],[21,12,23,12],[22,7,23,7],[24,11,26,11],[24,12,26,12],[27,7,28,7],[27,11,29,11],[27,12,29,12],[28,1,28,2],[29,1,29,2],[30,11,32,11],[30,12,32,12],[32,7,33,7],[33,11,35,11],[33,12,35,12]]}
[]
[]
[null,{"$f":"DAY(Күн_мәні)","v":12},{"$nulls":3},{"$f":"IFERROR(UPPER(TEXT(DATE(Есеп_жылы,Айлар_саны,Есеп_күні),\"ДД-ММ-ГГГГ\")),\"Invalid Date\")","v":"12-04-2016"},null,"АПТАҒА ШОЛУ",{"$nulls":3},"ЖАЗБАЛАР / ТАПСЫРМАЛАР ТІЗІМІ",null," "]
[{"$nulls":4},{"$f":"'Уақыт аралықтары'!B3","v":"06:00:00"},{"$f":"IFERROR(INDEX(Енгізу[],MATCH(DATEVALUE(Күн_мәні)&Күнделікті_кесте[[#This Row],[Time]],Күні_мен_уақытын_іздеу,0),3),\"-\")","v":"Ояту"},null,{"$f":"TEXT(DATEVALUE(Күн_мәні)+1,\"ДДДД\")","v":"Сәрсенбі"},{"$f":"IFERROR(INDEX(Енгізу[],MATCH($H$7&\"|\"&ROW(A1),Енгізу[БІРЕГЕЙ МӘН (ЕСЕПТЕЛГЕН)],0),2),\"\")","v":"06:30:00"},{"$f":"IFERROR(INDEX(Енгізу[],MATCH($H$7&\"|\"&ROW(A1),Енгізу[БІРЕГЕЙ МӘН (ЕСЕПТЕЛГЕН)],0),3),\"\")","v":"Таңғы ас"},null,"c","Химиялық тазартуды таңдау"]
[{"$nulls":4},{"$f":"'Уақыт аралықтары'!B4","v":"06:30:00"},{"$f":"IFERROR(INDEX(Енгізу[],MATCH(DATEVALUE(Күн_мәні)&Күнделікті_кесте[[#This Row],[Time]],Күні_мен_уақытын_іздеу,0),3),\"-\")","v":"Душ"},null,{"$f":"TEXT(DATEVALUE(Күн_мәні)+1,\"Д\")","v":"13"},{"$f":"IFERROR(INDEX(Енгізу[],MATCH($H$7&\"|\"&ROW(A2),Енгізу[БІРЕГЕЙ МӘН (ЕСЕПТЕЛГЕН)],0),2),\"\")","v":"07:30:00"},{"$f":"IFERROR(INDEX(Енгізу[],MATCH($H$7&\"|\"&ROW(A2),Енгізу[БІРЕГЕЙ МӘН (ЕСЕПТЕЛГЕН)],0),3),\"\")","v":"Жұмыстан қайту"}]
[{"$nulls":4},{"$f":"'Уақыт аралықтары'!B5","v":"07:00:00"},{"$f":"IFERROR(INDEX(Енгізу[],MATCH(DATEVALUE(Күн_мәні)&Күнделікті_кесте[[#This Row],[Time]],Күні_мен_уақытын_іздеу,0),3),\"-\")","v":"-"},null,null,{"$f":"IFERROR(INDEX(Енгізу[],MATCH($H$7&\"|\"&ROW(A3),Енгізу[БІРЕГЕЙ МӘН (ЕСЕПТЕЛГЕН)],0),2),\"\")","v":""},{"$f":"IFERROR(INDEX(Енгізу[],MATCH($H$7&\"|\"&ROW(A3),Енгізу[БІРЕГЕЙ МӘН (ЕСЕПТЕЛГЕН)],0),3),\"\")","v":""}]
[{"$nulls":4},{"$f":"'Уақыт аралықтары'!B6","v":"07:30:00"},{"$f":"IFERROR(INDEX(Енгізу[],MATCH(DATEVALUE(Күн_мәні)&Күнделікті_кесте[[#This Row],[Time]],Күні_мен_уақытын_іздеу,0),3),\"-\")","v":"Жұмыстан қайту"},null,{"$f":"Күн_мәні+1","v":"2016-04-13"},{"$f":"IFERROR(INDEX(Енгізу[],MATCH($H$7&\"|\"&ROW(A4),Енгізу[БІРЕГЕЙ МӘН (ЕСЕПТЕЛГЕН)],0),2),\"\")","v":""},{"$f":"IFERROR(INDEX(Енгізу[],MATCH($H$7&\"|\"&ROW(A4),Енгізу[БІРЕГЕЙ МӘН (ЕСЕПТЕЛГЕН)],0),3),\"\")","v":""},null,"c","Кабельді компанияға қоңырау шалу"]
[null,{"$f":"TEXT(Күн_мәні,\"ДДДД\")","v":"Сейсенбі"},null,null,{"$f":"'Уақыт аралықтары'!B7","v":"08:00:00"},{"$f":"IFERROR(INDEX(Енгізу[],MATCH(DATEVALUE(Күн_мәні)&Күнделікті_кесте[[#This Row],[Time]],Күні_мен_уақытын_іздеу,0),3),\"-\")","v":"Ауысымды бастау"},null,null,{"$f":"IFERROR(INDEX(Енгізу[],MATCH($H$7&\"|\"&ROW(A5),Енгізу[БІРЕГЕЙ МӘН (ЕСЕПТЕЛГЕН)],0),2),\"\")","v":""},{"$f":"IFERROR(INDEX(Енгізу[],MATCH($H$7&\"|\"&ROW(A5),Енгізу[БІРЕГЕЙ МӘН (ЕСЕПТЕЛГЕН)],0),3),\"\")","v":""}]
[{"$nulls":4},{"$f":"'Уақыт аралықтары'!B8","v":"08:30:00"},{"$f":"IFERROR(INDEX(Енгізу[],MATCH(DATEVALUE(Күн_мәні)&Күнделікті_кесте[[#This Row],[Time]],Күні_мен_уақытын_іздеу,0),3),\"-\")","v":"-"},null,null,{"$f":"IFERROR(INDEX(Енгізу[],MATCH($H$7&\"|\"&ROW(A6),Енгізу[БІРЕГЕЙ МӘН (ЕСЕПТЕЛГЕН)],0),2),\"\")","v":""},{"$f":"IFERROR(INDEX(Енгізу[],MATCH($H$7&\"|\"&ROW(A6),Енгізу[БІРЕГЕЙ МӘН (ЕСЕПТЕЛГЕН)],0),3),\"\")","v":""}]
[{"$nulls":4},{"$f":"'Уақыт аралықтары'!B9","v":"09:00:00"},{"$f":"IFERROR(INDEX(Енгізу[],MATCH(DATEVALUE(Күн_мәні)&Күнделікті_кесте[[#This Row],[Time]],Күні_мен_уақытын_іздеу,0),3),\"-\")","v":"-"},null,{"$f":"TEXT(DATEVALUE(Күн_мәні)+2,\"ДДДД\")","v":"Бейсенбі"},{"$f":"IFERROR(INDEX(Енгізу[],MATCH($H$13&\"|\"&ROW(A1),Енгізу[БІРЕГЕЙ МӘН (ЕСЕПТЕЛГЕН)],0),2),\"\")","v":""},{"$f":"IFERROR(INDEX(Енгізу[],MATCH($H$13&\"|\"&ROW(A1),Енгізу[БІРЕГЕЙ МӘН (ЕСЕПТЕЛГЕН)],0),3),\"\")","v":""},null,"c"]
[{"$nulls":4},{"$f":"'Уақыт аралықтары'!B10","v":"09:30:00"},{"$f":"IFERROR(INDEX(Енгізу[],MATCH(DATEVALUE(Күн_мәні)&Күнделікті_кесте[[#This Row],[Time]],Күні_мен_уақытын_іздеу,0),3),\"-\")","v":"-"},null,{"$f":"TEXT(DATEVALUE(Күн_мәні)+2,\"Д\")","v":"14"},{"$f":"IFERROR(INDEX(Енгізу[],MATCH($H$13&\"|\"&ROW(A2),Енгізу[БІРЕГЕЙ МӘН (ЕСЕПТЕЛГЕН)],0),2),\"\")","v":""},{"$f":"IFERROR(INDEX(Енгізу[],MATCH($H$13&\"|\"&ROW(A2),Енгізу[БІРЕГЕЙ МӘН (ЕСЕПТЕЛГЕН)],0),3),\"\")","v":""}]
[{"$nulls":4},{"$f":"'Уақыт аралықтары'!B11","v":"10:00:00"},{"$f":"IFERROR(INDEX(Енгізу[],MATCH(DATEVALUE(Күн_мәні)&Күнделікті_кесте[[#This Row],[Time]],Күні_мен_уақытын_іздеу,0),3),\"-\")","v":"Үзіліс"},null,null,{"$f":"IFERROR(INDEX(Енгізу[],MATCH($H$13&\"|\"&ROW(A3),Енгізу[БІРЕГЕЙ МӘН (ЕСЕПТЕЛГЕН)],0),2),\"\")","v":""},{"$f":"IFERROR(INDEX(Енгізу[],MATCH($H$13&\"|\"&ROW(A3),Енгізу[БІРЕГЕЙ МӘН (ЕСЕПТЕЛГЕН)],0),3),\"\")","v":""}]
[null,"КЕСТЕНІ ҚАРАУ",null,null,{"$f":"'Уақыт аралықтары'!B12","v":"10:30:00"},{"$f":"IFERROR(INDEX(Енгізу[],MATCH(DATEVALUE(Күн_мәні)&Күнделікті_кесте[[#This Row],[Time]],Күні_мен_уақытын_іздеу,0),3),\"-\")","v":"-"},null,{"$f":"Күн_мәні+2","v":"2016-04-14"},{"$f":"IFERROR(INDEX(Енгізу[],MATCH($H$13&\"|\"&ROW(A4),Енгізу[БІРЕГЕЙ МӘН (ЕСЕПТЕЛГЕН)],0),2),\"\")","v":""},{"$f":"IFERROR(INDEX(Енгізу[],MATCH($H$13&\"|\"&ROW(A4),Енгізу[БІРЕГЕЙ МӘН (ЕСЕПТЕЛГЕН)],0),3),\"\")","v":""},null,"c"]
[{"$nulls":4},{"$f":"'Уақыт аралықтары'!B13","v":"11:00:00"},{"$f":"IFERROR(INDEX(Енгізу[],MATCH(DATEVALUE(Күн_мәні)&Күнделікті_кесте[[#This Row],[Time]],Күні_мен_уақытын_іздеу,0),3),\"-\")","v":"-"},null,null,{"$f":"IFERROR(INDEX(Енгізу[],MATCH($H$13&\"|\"&ROW(A5),Енгізу[БІРЕГЕЙ МӘН (ЕСЕПТЕЛГЕН)],0),2),\"\")","v":""},{"$f":"IFERROR(INDEX(Енгізу[],MATCH($H$13&\"|\"&ROW(A5),Енгізу[БІРЕГЕЙ МӘН (ЕСЕПТЕЛГЕН)],0),3),\"\")","v":""}]
[null,2016,"Жыл",null,{"$f":"'Уақыт аралықтары'!B14","v":"11:30:00"},{"$f":"IFERROR(INDEX(Енгізу[],MATCH(DATEVALUE(Күн_мәні)&Күнделікті_кесте[[#This Row],[Time]],Күні_мен_уақытын_іздеу,0),3),\"-\")","v":"-"},null,null,{"$f":"IFERROR(INDEX(Енгізу[],MATCH($H$13&\"|\"&ROW(A6),Енгізу[БІРЕГЕЙ МӘН (ЕСЕПТЕЛГЕН)],0),2),\"\")","v":""},{"$f":"IFERROR(INDEX(Енгізу[],MATCH($H$13&\"|\"&ROW(A6),Енгізу[БІРЕГЕЙ МӘН (ЕСЕПТЕЛГЕН)],0),3),\"\")","v":""}]
[{"$nulls":4},{"$f":"'Уақыт аралықтары'!B15","v":"12:00:00"},{"$f":"IFERROR(INDEX(Енгізу[],MATCH(DATEVALUE(Күн_мәні)&Күнделікті_кесте[[#This Row],[Time]],Күні_мен_уақытын_іздеу,0),3),\"-\")","v":"Түскі ас"},null,{"$f":"TEXT(DATEVALUE(Күн_мәні)+3,\"ДДДД\")","v":"Жұма"},{"$f":"IFERROR(INDEX(Енгізу[],MATCH($H$19&\"|\"&ROW(A1),Енгізу[БІРЕГЕЙ МӘН (ЕСЕПТЕЛГЕН)],0),2),\"\")","v":""},{"$f":"IFERROR(INDEX(Енгізу[],MATCH($H$19&\"|\"&ROW(A1),Енгізу[БІРЕГЕЙ МӘН (ЕСЕПТЕЛГЕН)],0),3),\"\")","v":""},null,"c"]
[null,{"$f":"CHOOSE(Айлар_саны,\"Қаңтар\",\"Ақпан\",\"Наурыз\",\"Сәуір\",\"Мамыр\",\"Маусым\",\"Шілде\",\"Тамыз\",\"Қыркүйек\",\"Қазан\",\"Қараша\",\"Желтоқсан\")","v":"Сәуір"},"Ай",null,{"$f":"'Уақыт аралықтары'!B16","v":"12:30:00"},{"$f":"IFERROR(INDEX(Енгізу[],MATCH(DATEVALUE(Күн_мәні)&Күнделікті_кесте[[#This Row],[Time]],Күні_мен_уақытын_іздеу,0),3),\"-\")","v":"-"},null,{"$f":"TEXT(DATEVALUE(Күн_мәні)+3,\"Д\")","v":"15"},{"$f":"IFERROR(INDEX(Енгізу[],MATCH($H$19&\"|\"&ROW(A2),Енгізу[БІРЕГЕЙ МӘН (ЕСЕПТЕЛГЕН)],0),2),\"\")","v":""},{"$f":"IFERROR(INDEX(Енгізу[],MATCH($H$19&\"|\"&ROW(A2),Енгізу[БІРЕГЕЙ МӘН (ЕСЕПТЕЛГЕН)],0),3),\"\")","v":""}]
[null,4,null,null,{"$f":"'Уақыт аралықтары'!B17","v":"13:00:00"},{"$f":"IFERROR(INDEX(Енгізу[],MATCH(DATEVALUE(Күн_мәні)&Күнделікті_кесте[[#This Row],[Time]],Күні_мен_уақытын_іздеу,0),3),\"-\")","v":"Жұмысқа оралу"},null,null,{"$f":"IFERROR(INDEX(Енгізу[],MATCH($H$19&\"|\"&ROW(A3),Енгізу[БІРЕГЕЙ МӘН (ЕСЕПТЕЛГЕН)],0),2),\"\")","v":""},{"$f":"IFERROR(INDEX(Енгізу[],MATCH($H$19&\"|\"&ROW(A3),Енгізу[БІРЕГЕЙ МӘН (ЕСЕПТЕЛГЕН)],0),3),\"\")","v":""}]
[null,12,"Күн",null,{"$f":"'Уақыт аралықтары'!B18","v":"13:30:00"},{"$f":"IFERROR(INDEX(Енгізу[],MATCH(DATEVALUE(Күн_мәні)&Күнделікті_кесте[[#This Row],[Time]],Күні_мен_уақытын_іздеу,0),3),\"-\")","v":"Корпоративтік қоңырау"},null,{"$f":"Күн_мәні+3","v":"2016-04-15"},{"$f":"IFERROR(INDEX(Енгізу[],MATCH($H$19&\"|\"&ROW(A4),Енгізу[БІРЕГЕЙ МӘН (ЕСЕПТЕЛГЕН)],0),2),\"\")","v":""},{"$f":"IFERROR(INDEX(Енгізу[],MATCH($H$19&\"|\"&ROW(A4),Енгізу[БІРЕГЕЙ МӘН (ЕСЕПТЕЛГЕН)],0),3),\"\")","v":""},null,"c"]
[{"$nulls":4},{"$f":"'Уақыт аралықтары'!B19","v":"14:00:00"},{"$f":"IFERROR(INDEX(Енгізу[],MATCH(DATEVALUE(Күн_мәні)&Күнделікті_кесте[[#This Row],[Time]],Күні_мен_уақытын_іздеу,0),3),\"-\")","v":"-"},null,null,{"$f":"IFERROR(INDEX(Енгізу[],MATCH($H$19&\"|\"&ROW(A5),Енгізу[БІРЕГЕЙ МӘН (ЕСЕПТЕЛГЕН)],0),2),\"\")","v":""},{"$f":"IFERROR(INDEX(Енгізу[],MATCH($H$19&\"|\"&ROW(A5),Енгізу[БІРЕГЕЙ МӘН (ЕСЕПТЕЛГЕН)],0),3),\"\")","v":""}]
[{"$nulls":4},{"$f":"'Уақыт аралықтары'!B20","v":"14:30:00"},{"$f":"IFERROR(INDEX(Енгізу[],MATCH(DATEVALUE(Күн_мәні)&Күнделікті_кесте[[#This Row],[Time]],Күні_мен_уақытын_іздеу,0),3),\"-\")","v":"-"},null,null,{"$f":"IFERROR(INDEX(Енгізу[],MATCH($H$19&\"|\"&ROW(A6),Енгізу[БІРЕГЕЙ МӘН (ЕСЕПТЕЛГЕН)],0),2),\"\")","v":""},{"$f":"IFERROR(INDEX(Енгізу[],MATCH($H$19&\"|\"&ROW(A6),Енгізу[БІРЕГЕЙ МӘН (ЕСЕПТЕЛГЕН)],0),3),\"\")","v":""}]
[null,"КЕСТЕНІ ӨҢДЕУ",null,null,{"$f":"'Уақыт аралықтары'!B21","v":"15:00:00"},{"$f":"IFERROR(INDEX(Енгізу[],MATCH(DATEVALUE(Күн_мәні)&Күнделікті_кесте[[#This Row],[Time]],Күні_мен_уақытын_іздеу,0),3),\"-\")","v":"Үзіліс"},null,{"$f":"TEXT(DATEVALUE(Күн_мәні)+4,\"ДДДД\")","v":"Сенбі"},{"$f":"IFERROR(INDEX(Енгізу[],MATCH($H$25&\"|\"&ROW(A1),Енгізу[БІРЕГЕЙ МӘН (ЕСЕПТЕЛГЕН)],0),2),\"\")","v":""},{"$f":"IFERROR(INDEX(Енгізу[],MATCH($H$25&\"|\"&ROW(A1),Енгізу[БІРЕГЕЙ МӘН (ЕСЕПТЕЛГЕН)],0),3),\"\")","v":""},null,"c"]
[{"$nulls":4},{"$f":"'Уақыт аралықтары'!B22","v":"15:30:00"},{"$f":"IFERROR(INDEX(Енгізу[],MATCH(DATEVALUE(Күн_мәні)&Күнделікті_кесте[[#This Row],[Time]],Күні_мен_уақытын_іздеу,0),3),\"-\")","v":"-"},null,{"$f":"TEXT(DATEVALUE(Күн_мәні)+4,\"Д\")","v":"16"},{"$f":"IFERROR(INDEX(Енгізу[],MATCH($H$25&\"|\"&ROW(A2),Енгізу[БІРЕГЕЙ МӘН (ЕСЕПТЕЛГЕН)],0),2),\"\")","v":""},{"$f":"IFERROR(INDEX(Енгізу[],MATCH($H$25&\"|\"&ROW(A2),Енгізу[БІРЕГЕЙ МӘН (ЕСЕПТЕЛГЕН)],0),3),\"\")","v":""}]
[{"$nulls":4},{"$f":"'Уақыт аралықтары'!B23","v":"16:00:00"},{"$f":"IFERROR(INDEX(Енгізу[],MATCH(DATEVALUE(Күн_мәні)&Күнделікті_кесте[[#This Row],[Time]],Күні_мен_уақытын_іздеу,0),3),\"-\")","v":"-"},null,null,{"$f":"IFERROR(INDEX(Енгізу[],MATCH($H$25&\"|\"&ROW(A3),Енгізу[БІРЕГЕЙ МӘН (ЕСЕПТЕЛГЕН)],0),2),\"\")","v":""},{"$f":"IFERROR(INDEX(Енгізу[],MATCH($H$25&\"|\"&ROW(A3),Енгізу[БІРЕГЕЙ МӘН (ЕСЕПТЕЛГЕН)],0),3),\"\")","v":""}]
[{"$nulls":4},{"$f":"'Уақыт аралықтары'!B24","v":"16:30:00"},{"$f":"IFERROR(INDEX(Енгізу[],MATCH(DATEVALUE(Күн_мәні)&Күнделікті_кесте[[#This Row],[Time]],Күні_мен_уақытын_іздеу,0),3),\"-\")","v":"-"},null,{"$f":"Күн_мәні+4","v":"2016-04-16"},{"$f":"IFERROR(INDEX(Енгізу[],MATCH($H$25&\"|\"&ROW(A4),Енгізу[БІРЕГЕЙ МӘН (ЕСЕПТЕЛГЕН)],0),2),\"\")","v":""},{"$f":"IFERROR(INDEX(Енгізу[],MATCH($H$25&\"|\"&ROW(A4),Енгізу[БІРЕГЕЙ МӘН (ЕСЕПТЕЛГЕН)],0),3),\"\")","v":""},null,"c"]
[{"$nulls":4},{"$f":"'Уақыт аралықтары'!B25","v":"17:00:00"},{"$f":"IFERROR(INDEX(Енгізу[],MATCH(DATEVALUE(Күн_мәні)&Күнделікті_кесте[[#This Row],[Time]],Күні_мен_уақытын_іздеу,0),3),\"-\")","v":"Басты"},null,null,{"$f":"IFERROR(INDEX(Енгізу[],MATCH($H$25&\"|\"&ROW(A5),Енгізу[БІРЕГЕЙ МӘН (ЕСЕПТЕЛГЕН)],0),2),\"\")","v":""},{"$f":"IFERROR(INDEX(Енгізу[],MATCH($H$25&\"|\"&ROW(A5),Енгізу[БІРЕГЕЙ МӘН (ЕСЕПТЕЛГЕН)],0),3),\"\")","v":""}]
[{"$nulls":4},{"$f":"'Уақыт аралықтары'!B26","v":"17:30:00"},{"$f":"IFERROR(INDEX(Енгізу[],MATCH(DATEVALUE(Күн_мәні)&Күнделікті_кесте[[#This Row],[Time]],Күні_мен_уақытын_іздеу,0),3),\"-\")","v":"-"},null,{"$f":"TEXT(DATEVALUE(Күн_мәні)+5,\"ДДДД\")","v":"Жексенбі"},{"$f":"IFERROR(INDEX(Енгізу[],MATCH($H$30&\"|\"&ROW(A1),Енгізу[БІРЕГЕЙ МӘН (ЕСЕПТЕЛГЕН)],0),2),\"\")","v":""},{"$f":"IFERROR(INDEX(Енгізу[],MATCH($H$30&\"|\"&ROW(A1),Енгізу[БІРЕГЕЙ МӘН (ЕСЕПТЕЛГЕН)],0),3),\"\")","v":""}]
[{"$nulls":4},{"$f":"'Уақыт аралықтары'!B27","v":"18:00:00"},{"$f":"IFERROR(INDEX(Енгізу[],MATCH(DATEVALUE(Күн_мәні)&Күнделікті_кесте[[#This Row],[Time]],Күні_мен_уақытын_іздеу,0),3),\"-\")","v":"Футбол"},null,{"$f":"TEXT(DATEVALUE(Күн_мәні)+5,\"Д\")","v":"17"},{"$f":"IFERROR(INDEX(Енгізу[],MATCH($H$30&\"|\"&ROW(A2),Енгізу[БІРЕГЕЙ МӘН (ЕСЕПТЕЛГЕН)],0),2),\"\")","v":""},{"$f":"IFERROR(INDEX(Енгізу[],MATCH($H$30&\"|\"&ROW(A2),Енгізу[БІРЕГЕЙ МӘН (ЕСЕПТЕЛГЕН)],0),3),\"\")","v":""},null,"c"]
[null,"КЕСТЕ ІШІНДЕ БӨЛЕКТЕУ:",null,null,{"$f":"'Уақыт аралықтары'!B28","v":"18:30:00"},{"$f":"IFERROR(INDEX(Енгізу[],MATCH(DATEVALUE(Күн_мәні)&Күнделікті_кесте[[#This Row],[Time]],Күні_мен_уақытын_іздеу,0),3),\"-\")","v":"-"},null,null,{"$f":"IFERROR(INDEX(Енгізу[],MATCH($H$30&\"|\"&ROW(A3),Енгізу[БІРЕГЕЙ МӘН (ЕСЕПТЕЛГЕН)],0),2),\"\")","v":""},{"$f":"IFERROR(INDEX(Енгізу[],MATCH($H$30&\"|\"&ROW(A3),Енгізу[БІРЕГЕЙ МӘН (ЕСЕПТЕЛГЕН)],0),3),\"\")","v":""}]
[null,"Үзіліс",null,null,{"$f":"'Уақыт аралықтары'!B29","v":"19:00:00"},{"$f":"IFERROR(INDEX(Енгізу[],MATCH(DATEVALUE(Күн_мәні)&Күнделікті_кесте[[#This Row],[Time]],Күні_мен_уақытын_іздеу,0),3),\"-\")","v":"-"},null,{"$f":"Күн_мәні+5","v":"2016-04-17"},{"$f":"IFERROR(INDEX(Енгізу[],MATCH($H$30&\"|\"&ROW(A4),Енгізу[БІРЕГЕЙ МӘН (ЕСЕПТЕЛГЕН)],0),2),\"\")","v":""},{"$f":"IFERROR(INDEX(Енгізу[],MATCH($H$30&\"|\"&ROW(A4),Енгізу[БІРЕГЕЙ МӘН (ЕСЕПТЕЛГЕН)],0),3),\"\")","v":""}]
[{"$nulls":4},{"$f":"'Уақыт аралықтары'!B30","v":"19:30:00"},{"$f":"IFERROR(INDEX(Енгізу[],MATCH(DATEVALUE(Күн_мәні)&Күнделікті_кесте[[#This Row],[Time]],Күні_мен_уақытын_іздеу,0),3),\"-\")","v":"-"},null,null,{"$f":"IFERROR(INDEX(Енгізу[],MATCH($H$30&\"|\"&ROW(A5),Енгізу[БІРЕГЕЙ МӘН (ЕСЕПТЕЛГЕН)],0),2),\"\")","v":""},{"$f":"IFERROR(INDEX(Енгізу[],MATCH($H$30&\"|\"&ROW(A5),Енгізу[БІРЕГЕЙ МӘН (ЕСЕПТЕЛГЕН)],0),3),\"\")","v":""},null,"c"]
[{"$nulls":4},{"$f":"'Уақыт аралықтары'!B31","v":"20:00:00"},{"$f":"IFERROR(INDEX(Енгізу[],MATCH(DATEVALUE(Күн_мәні)&Күнделікті_кесте[[#This Row],[Time]],Күні_мен_уақытын_іздеу,0),3),\"-\")","v":"-"},null,{"$f":"TEXT(DATEVALUE(Күн_мәні)+6,\"ДДДД\")","v":"Дүйсенбі"},{"$f":"IFERROR(INDEX(Енгізу[],MATCH($H$35&\"|\"&ROW(A1),Енгізу[БІРЕГЕЙ МӘН (ЕСЕПТЕЛГЕН)],0),2),\"\")","v":""},{"$f":"IFERROR(INDEX(Енгізу[],MATCH($H$35&\"|\"&ROW(A1),Енгізу[БІРЕГЕЙ МӘН (ЕСЕПТЕЛГЕН)],0),3),\"\")","v":""}]
[{"$nulls":4},{"$f":"'Уақыт аралықтары'!B32","v":"20:30:00"},{"$f":"IFERROR(INDEX(Енгізу[],MATCH(DATEVALUE(Күн_мәні)&Күнделікті_кесте[[#This Row],[Time]],Күні_мен_уақытын_іздеу,0),3),\"-\")","v":"-"},null,{"$f":"TEXT(DATEVALUE(Күн_мәні)+6,\"Д\")","v":"18"},{"$f":"IFERROR(INDEX(Енгізу[],MATCH($H$35&\"|\"&ROW(A2),Енгізу[БІРЕГЕЙ МӘН (ЕСЕПТЕЛГЕН)],0),2),\"\")","v":""},{"$f":"IFERROR(INDEX(Енгізу[],MATCH($H$35&\"|\"&ROW(A2),Енгізу[БІРЕГЕЙ МӘН (ЕСЕПТЕЛГЕН)],0),3),\"\")","v":""}]
[{"$nulls":4},{"$f":"'Уақыт аралықтары'!B33","v":"21:00:00"},{"$f":"IFERROR(INDEX(Енгізу[],MATCH(DATEVALUE(Күн_мәні)&Күнделікті_кесте[[#This Row],[Time]],Күні_мен_уақытын_іздеу,0),3),\"-\")","v":"-"},null,null,{"$f":"IFERROR(INDEX(Енгізу[],MATCH($H$35&\"|\"&ROW(A3),Енгізу[БІРЕГЕЙ МӘН (ЕСЕПТЕЛГЕН)],0),2),\"\")","v":""},{"$f":"IFERROR(INDEX(Енгізу[],MATCH($H$35&\"|\"&ROW(A3),Енгізу[БІРЕГЕЙ МӘН (ЕСЕПТЕЛГЕН)],0),3),\"\")","v":""},null,"c"]
[{"$nulls":4},{"$f":"'Уақыт аралықтары'!B34","v":"21:30:00"},{"$f":"IFERROR(INDEX(Енгізу[],MATCH(DATEVALUE(Күн_мәні)&Күнделікті_кесте[[#This Row],[Time]],Күні_мен_уақытын_іздеу,0),3),\"-\")","v":"-"},null,{"$f":"Күн_мәні+6","v":"2016-04-18"},{"$f":"IFERROR(INDEX(Енгізу[],MATCH($H$35&\"|\"&ROW(A4),Енгізу[БІРЕГЕЙ МӘН (ЕСЕПТЕЛГЕН)],0),2),\"\")","v":""},{"$f":"IFERROR(INDEX(Енгізу[],MATCH($H$35&\"|\"&ROW(A4),Енгізу[БІРЕГЕЙ МӘН (ЕСЕПТЕЛГЕН)],0),3),\"\")","v":""}]
[{"$nulls":4},{"$f":"'Уақыт аралықтары'!B35","v":"22:00:00"},{"$f":"IFERROR(INDEX(Енгізу[],MATCH(DATEVALUE(Күн_мәні)&Күнделікті_кесте[[#This Row],[Time]],Күні_мен_уақытын_іздеу,0),3),\"-\")","v":"-"},null,null,{"$f":"IFERROR(INDEX(Енгізу[],MATCH($H$35&\"|\"&ROW(A5),Енгізу[БІРЕГЕЙ МӘН (ЕСЕПТЕЛГЕН)],0),2),\"\")","v":""},{"$f":"IFERROR(INDEX(Енгізу[],MATCH($H$35&\"|\"&ROW(A5),Енгізу[БІРЕГЕЙ МӘН (ЕСЕПТЕЛГЕН)],0),3),\"\")","v":""}]

{"sheet":"Оқиға жоспарлағышы","index":1,"n_rows":17,"n_cols":9,"rows_kept":17,"merged":[[0,1,5,2],[0,4,2,5],[6,1,7,2],[8,1,9,2]]}
[null,{"$f":"DAY(Күн_мәні)","v":12},null,null,"Оқиға жоспарлағышы"]
[]
[{"$nulls":8}," "]
[{"$nulls":4},"КҮНІ","УАҚЫТ","СИПАТТАМАСЫ","БІРЕГЕЙ МӘН (ЕСЕПТЕЛГЕН)"," "]
[{"$nulls":4},"2016-04-12","06:00:00","Ояту",{"$f":"Енгізу[[#This Row],[КҮНІ]]&\"|\"&COUNTIF($E$5:E5,E5)","v":"42472|1"}]
[{"$nulls":4},"2016-04-12","06:30:00","Душ",{"$f":"Енгізу[[#This Row],[КҮНІ]]&\"|\"&COUNTIF($E$5:E6,E6)","v":"42472|2"}]
[null,{"$f":"TEXT(Күн_мәні,\"ДДДД\")","v":"Сейсенбі"},null,null,"2016-04-12","07:30:00","Жұмыстан қайту",{"$f":"Енгізу[[#This Row],[КҮНІ]]&\"|\"&COUNTIF($E$5:E7,E7)","v":"42472|3"}]
[{"$nulls":4},"2016-04-12","08:00:00","Ауысымды бастау",{"$f":"Енгізу[[#This Row],[КҮНІ]]&\"|\"&COUNTIF($E$5:E8,E8)","v":"42472|4"}]
[null,{"$f":"Күн_мәні","v":"12-04-2016"},null,null,"2016-04-12","10:00:00","Үзіліс",{"$f":"Енгізу[[#This Row],[КҮНІ]]&\"|\"&COUNTIF($E$5:E9,E9)","v":"42472|5"}]
[{"$nulls":4},"2016-04-12","12:00:00","Түскі ас",{"$f":"Енгізу[[#This Row],[КҮНІ]]&\"|\"&COUNTIF($E$5:E10,E10)","v":"42472|6"}]
[{"$nulls":4},"2016-04-12","13:00:00","Жұмысқа оралу",{"$f":"Енгізу[[#This Row],[КҮНІ]]&\"|\"&COUNTIF($E$5:E11,E11)","v":"42472|7"}]
[{"$nulls":4},"2016-04-12","13:30:00","Корпоративтік қоңырау",{"$f":"Енгізу[[#This Row],[КҮНІ]]&\"|\"&COUNTIF($E$5:E12,E12)","v":"42472|8"}]
[{"$nulls":4},"2016-04-12","15:00:00","Үзіліс",{"$f":"Енгізу[[#This Row],[КҮНІ]]&\"|\"&COUNTIF($E$5:E13,E13)","v":"42472|9"}]
[{"$nulls":4},"2016-04-12","17:00:00","Басты",{"$f":"Енгізу[[#This Row],[КҮНІ]]&\"|\"&COUNTIF($E$5:E14,E14)","v":"42472|10"}]
[{"$nulls":4},"2016-04-12","18:00:00","Футбол",{"$f":"Енгізу[[#This Row],[КҮНІ]]&\"|\"&COUNTIF($E$5:E15,E15)","v":"42472|11"}]
[{"$nulls":4},"2016-04-13","06:30:00","Таңғы ас",{"$f":"Енгізу[[#This Row],[КҮНІ]]&\"|\"&COUNTIF($E$5:E16,E16)","v":"42473|1"}]
[{"$nulls":4},"2016-04-13","07:30:00","Жұмыстан қайту",{"$f":"Енгізу[[#This Row],[КҮНІ]]&\"|\"&COUNTIF($E$5:E17,E17)","v":"42473|2"}," "]

{"sheet":"Уақыт аралықтары","index":2,"n_rows":35,"n_cols":2,"rows_kept":35}
[]
[null,"УАҚЫТ"]
[null,"06:00:00"]
[null,"06:30:00"]
[null,"07:00:00"]
[null,"07:30:00"]
[null,"08:00:00"]
[null,"08:30:00"]
[null,"09:00:00"]
[null,"09:30:00"]
[null,"10:00:00"]
[null,"10:30:00"]
[null,"11:00:00"]
[null,"11:30:00"]
[null,"12:00:00"]
[null,"12:30:00"]
[null,"13:00:00"]
[null,"13:30:00"]
[null,"14:00:00"]
[null,"14:30:00"]
[null,"15:00:00"]
[null,"15:30:00"]
[null,"16:00:00"]
[null,"16:30:00"]
[null,"17:00:00"]
[null,"17:30:00"]
[null,"18:00:00"]
[null,"18:30:00"]
[null,"19:00:00"]
[null,"19:30:00"]
[null,"20:00:00"]
[null,"20:30:00"]
[null,"21:00:00"]
[null,"21:30:00"]
[null,"22:00:00"]